bitfinex-derivatives/quotes_BTCF0:USTF0_20250213
["timestamp","ask_amount","ask_price","bid_price","bid_amount"]
[1739460946640,0.00015616,96063.0,96051.0,0.48577339]
[1739460946641,0.00015616,96063.0,96051.0,0.48633339]
[1739460946840,0.00015616,96063.0,96061.0,0.2081904]
[1739460948236,0.20934306,96063.0,96061.0,0.2081904]
[1739460948430,0.21034306,96063.0,96061.0,0.2081904]
[1739460948639,0.00215616,96063.0,96061.0,0.2309984]
[1739460949239,0.00215616,96063.0,96061.0,0.022808]
[1739460949540,0.00215616,96063.0,96055.0,0.208203]
[1739460950146,0.3608,96060.0,96045.0,0.1381]
[1739460950451,0.2082255,96045.0,96043.0,0.00064]
[1739460950639,0.2082255,96045.0,96031.0,0.1365]
[1739460950844,0.2082255,96045.0,96034.0,0.2082489]
[1739460951046,0.59242288,96045.0,96031.0,0.1365]
[1739460951241,0.59242288,96045.0,96030.0,0.0239049]
[1739460951242,0.2082493,96034.0,96030.0,0.0239049]
[1739460951538,0.5690493,96034.0,96022.0,0.3401743]
[1739460952144,0.5690493,96034.0,96024.0,0.2082696]
[1739460952347,0.5690493,96034.0,96022.0,0.1319]
[1739460952644,0.3618,96034.0,96033.0,0.00856201]
[1739460952949,0.001,96034.0,96033.0,0.00856201]
[1739460957240,0.001,96034.0,96033.0,0.01356201]
[1739460957436,0.002,96034.0,96033.0,0.01356201]
[1739460959554,0.002,96034.0,96033.0,0.22181351]
[1739460960751,0.18694355,96040.0,96039.0,0.2082385]
[1739460960951,0.16578739,96040.0,96039.0,0.5690385]
[1739460961150,0.16578739,96042.0,96041.0,0.2082342]
[1739460962053,0.00015616,96043.0,96041.0,0.2082342]
[1739460963055,0.3608,96066.0,96065.0,0.2081821]
[1739460963857,0.2081672,96072.0,96066.0,0.2081795]
[1739460964058,0.2081672,96072.0,96057.0,0.2858]
[1739460964258,0.2081672,96072.0,96069.0,0.2081725]
[1739460964455,0.2081672,96072.0,96070.0,0.2081711]
[1739460965362,0.2121672,96072.0,96070.0,0.2081711]
[1739460966756,0.007,96072.0,96070.0,0.2081711]
[1739460967160,0.007,96072.0,96071.0,0.2081691]
[1739460968058,0.007,96072.0,96064.0,0.02313934]
[1739460968258,0.007,96072.0,96071.0,0.2081691]
[1739460969060,0.007,96072.0,96060.0,0.12497339]
[1739460969256,0.2081742,96069.0,96066.0,0.2081779]
[1739460969462,0.004,96072.0,96066.0,0.2081779]
[1739460969657,0.2081767,96068.0,96066.0,0.2081779]
[1739460970465,0.2081767,96068.0,96060.0,0.12497339]
[1739460970659,0.2081767,96068.0,96067.0,0.2081778]
[1739460970864,0.2131767,96068.0,96067.0,0.23182449]
[1739460971065,0.005,96068.0,96067.0,0.23182449]
[1739460971668,0.002,96068.0,96067.0,0.23182449]
[1739460972664,0.002,96068.0,96067.0,0.59262449]
[1739460972865,0.2081585,96076.0,96073.0,0.2081634]
[1739460973363,0.2081585,96076.0,96075.0,0.2081605]
[1739460973569,0.2081675,96072.0,96070.0,0.2081702]
[1739460973764,0.3608,96077.0,96070.0,0.2081702]
[1739460973964,0.3608,96077.0,96067.0,0.23182299]
[1739460974170,0.3608,96077.0,96059.0,0.36095616]
[1739460974373,0.208193,96060.0,96059.0,0.00015616]
[1739460975178,0.568993,96060.0,96059.0,0.00015616]
[1739460975867,0.2082524,96033.0,96028.0,0.24864622]
[1739460976073,0.2082524,96033.0,96028.0,0.45690762]
[1739460976472,0.3608,96048.0,96035.0,0.2082462]
[1739460976672,0.3608,96048.0,96028.0,0.24864622]
[1739460976673,0.3608,96048.0,96030.0,0.12497339]
[1739460976868,0.3608,96048.0,96030.0,0.33323059]
[1739460976869,0.2082408,96038.0,96030.0,0.33323059]
[1739460977069,0.2082408,96038.0,96030.0,0.2082572]
[1739460977374,0.36095616,96048.0,96028.0,0.40245594]
[1739460977579,0.001,96033.0,96032.0,0.2082537]
[1739460978174,0.36095616,96048.0,96046.0,0.2082223]
[1739460978880,0.00015616,96048.0,96046.0,0.2082223]
[1739460979282,0.00015616,96048.0,96047.0,0.135]
[1739460980079,0.00015616,96048.0,96047.0,0.2792]
[1739460980882,0.00015616,96048.0,96047.0,0.2832]
[1739460981272,0.00015616,96048.0,96047.0,0.2882]
[1739460982975,0.00015616,96048.0,96047.0,0.649]
[1739460986191,0.00015616,96048.0,96047.0,0.3698]
[1739460987183,0.7068046,96055.0,96048.0,0.2082187]
[1739460987481,0.7068046,96055.0,96049.0,0.2082166]
[1739460987787,0.7068046,96055.0,96051.0,0.2082124]
[1739460988291,0.1378,96055.0,96053.0,0.208208]
[1739460989283,0.2082148,96050.0,96048.0,0.004]
[1739460989486,0.5690148,96050.0,96048.0,0.004]
[1739460989689,0.5690148,96050.0,96049.0,0.003]
[1739460990485,0.5690148,96050.0,96043.0,0.00015616]
[1739460990686,0.2082148,96050.0,96049.0,0.004]
[1739460991293,0.5690148,96050.0,96049.0,0.004]
[1739460992294,0.5690148,96050.0,96049.0,0.007]
[1739460993392,0.5700148,96050.0,96049.0,0.003]
[1739460994096,0.5690148,96050.0,96049.0,0.2152168]
[1739460994388,0.5690148,96050.0,96049.0,0.007]
[1739460995183,0.62936172,96050.0,96049.0,0.007]
[1739460995387,0.62936172,96050.0,96049.0,0.2152168]
[1739460996997,0.42114692,96050.0,96049.0,0.2152168]
[1739460997198,0.42114692,96050.0,96049.0,0.23630186]
[1739460997499,0.42114692,96050.0,96049.0,0.2152168]
[1739460998189,0.3608,96050.0,96049.0,0.2152168]
[1739460998599,0.38184972,96050.0,96049.0,0.007]
[1739460998801,0.3608,96050.0,96049.0,0.007]
[1739461004301,0.3608,96050.0,96049.0,0.02772917]
[1739461005793,0.3608,96050.0,96049.0,0.007]
[1739461005994,0.51457832,96058.0,96049.0,0.007]
[1739461005995,0.2082043,96055.0,96049.0,0.007]
[1739461006203,0.2082043,96055.0,96049.0,0.02778322]
[1739461006392,0.2082043,96055.0,96049.0,0.007]
[1739461007100,0.2082043,96055.0,96049.0,0.003]
[1739461007300,0.4934,96058.0,96055.0,0.2082035]
[1739461007703,0.7015978,96058.0,96055.0,0.2082035]
[1739461007896,0.51438695,96058.0,96049.0,0.2152158]
[1739461008099,0.208214,96051.0,96049.0,0.007]
[1739461009100,0.208214,96051.0,96050.0,0.2082146]
[1739461009301,0.2082026,96056.0,96043.0,0.02047993]
[1739461009502,0.2082026,96056.0,96055.0,0.001]
[1739461010121,0.5690026,96056.0,96055.0,0.001]
[1739461010815,0.5690026,96056.0,96055.0,0.003]
[1739461011021,0.5690026,96056.0,96055.0,0.002]
[1739461011718,0.5690026,96056.0,96055.0,0.003]
[1739461017929,0.5690026,96056.0,96055.0,0.2112038]
[1739461018130,0.5690026,96056.0,96055.0,0.003]
[1739461018825,0.5690026,96056.0,96055.0,0.2112038]
[1739461020026,0.2082026,96056.0,96055.0,0.2112038]
[1739461020625,0.5690026,96056.0,96055.0,0.003]
[1739461021330,0.2082255,96045.0,96044.0,0.1335]
[1739461021523,0.2082255,96045.0,96043.0,0.00015616]
[1739461021524,0.2082277,96044.0,96043.0,0.00015616]
[1739461021828,0.0520576,96043.0,96007.0,0.3608]
[1739461022023,0.2082714,96024.0,96023.0,0.2082689]
[1739461023120,0.2092714,96024.0,96023.0,0.2152689]
[1739461023528,0.001,96024.0,96023.0,0.2152689]
[1739461024233,0.209271,96024.0,96023.0,0.2152689]
[1739461024420,0.209271,96024.0,96023.0,0.007]
[1739461025315,0.210271,96024.0,96023.0,0.012]
[1739461025821,0.209271,96024.0,96023.0,0.01]
[1739461026327,0.208271,96024.0,96023.0,0.006]
[1739461026720,0.208271,96024.0,96023.0,0.2142732]
[1739461026915,0.208271,96024.0,96023.0,0.006]
[1739461028531,0.3608,96026.0,96023.0,0.006]
[1739461028733,0.083,96025.0,96023.0,0.006]
[1739461029233,0.208271,96024.0,96023.0,0.006]
[1739461029528,0.3608,96026.0,96025.0,0.2082689]
[1739461029720,0.00015616,96033.0,96023.0,0.006]
[1739461030131,0.00015616,96033.0,96032.0,0.2082537]
[1739461030922,0.00015616,96033.0,96032.0,0.3350537]
[1739461035224,0.3608,96050.0,96032.0,0.1268]
[1739461035420,0.3608,96050.0,96045.0,0.2082255]
[1739461035636,0.38118887,96050.0,96045.0,0.2082255]
[1739461035822,0.3608,96050.0,96045.0,0.2082255]
[1739461036833,0.59011333,96050.0,96045.0,0.2082255]
[1739461037035,0.59095333,96050.0,96045.0,0.22939424]
[1739461037433,0.36164,96050.0,96045.0,0.22939424]
[1739461037636,0.3608,96050.0,96045.0,0.22939424]
[1739461037825,0.00556207,96046.0,96045.0,0.22939424]
[1739461038735,0.00656207,96046.0,96045.0,0.22939424]
[1739461039035,0.00656207,96046.0,96045.0,0.2112255]
[1739461039534,0.20978537,96046.0,96045.0,0.006]
[1739461040232,0.20978537,96046.0,96045.0,0.005]
[1739461040636,0.23083818,96046.0,96045.0,0.005]
[1739461040929,0.00156207,96046.0,96045.0,0.2122255]
[1739461041337,0.20978537,96046.0,96045.0,0.2122255]
[1739461041537,0.21078537,96046.0,96045.0,0.2102255]
[1739461041836,0.21078537,96046.0,96045.0,0.2082255]
[1739461041837,0.00456207,96046.0,96045.0,0.2082255]
[1739461042135,0.00556207,96046.0,96045.0,0.2082255]
[1739461042331,0.2082412,96041.0,96040.0,0.2082362]
[1739461043431,0.21178567,96046.0,96045.0,0.2082255]
[1739461043735,0.20978567,96046.0,96045.0,0.2082255]
[1739461045333,0.00156207,96046.0,96045.0,0.2082255]
[1739461046329,0.3608,96050.0,96049.0,0.2082168]
[1739461046536,0.3608,96060.0,96054.0,0.208206]
[1739461047337,0.2081981,96058.0,96054.0,0.208206]
[1739461047527,0.2082022,96056.0,96054.0,0.208206]
[1739461047728,0.3608,96060.0,96054.0,0.208206]
[1739461048225,0.06639785,96074.0,96054.0,0.3608]
[1739461048429,0.2081679,96072.0,96070.0,0.2081697]
[1739461049027,0.06639785,96074.0,96072.0,0.2081661]
[1739461049336,0.06839785,96074.0,96072.0,0.2081661]
[1739461049934,0.002,96074.0,96072.0,0.2081661]
[1739461050629,0.2101627,96074.0,96066.0,0.1359]
[1739461050830,0.2081627,96074.0,96066.0,0.1359]
[1739461051036,0.2151627,96074.0,96072.0,0.001]
[1739461051740,0.2081723,96070.0,96066.0,0.3450794]
[1739461051931,0.2081723,96070.0,96067.0,0.2081767]
[1739461052241,0.2081756,96068.0,96067.0,0.2081767]
[1739461052539,0.3668,96072.0,96063.0,0.00015616]
[1739461052540,0.2081843,96064.0,96063.0,0.00015616]
[1739461052739,0.2081736,96069.0,96064.0,0.2081843]
[1739461053041,0.2081761,96068.0,96064.0,0.2081843]
[1739461053242,0.2081782,96067.0,96064.0,0.2081843]
[1739461053434,0.2081782,96067.0,96065.0,0.2081816]
[1739461053628,0.006,96072.0,96070.0,0.2081697]
[1739461053841,0.014,96074.0,96073.0,0.2081648]
[1739461054343,0.01886297,96077.0,96076.0,0.2081583]
[1739461054640,0.00015616,96083.0,96082.0,0.2081453]
[1739461055236,0.00015616,96083.0,96082.0,0.01866334]
[1739461055436,0.00015616,96083.0,96076.0,0.2081583]
[1739461055746,0.00015616,96083.0,96081.0,0.2081469]
[1739461055931,0.00715616,96083.0,96082.0,0.1351]
[1739461057636,0.01415616,96083.0,96082.0,0.1351]
[1739461058244,0.00715616,96083.0,96082.0,0.1351]
[1739461058437,0.01415616,96083.0,96082.0,0.002]
[1739461058633,6e-08,96083.0,96082.0,0.3628]
[1739461058835,0.00156131,96103.0,96102.0,0.208102]
[1739461059142,0.2599,96119.0,96102.0,0.7216]
[1739461059333,0.2599,96119.0,96116.0,0.3608]
[1739461059537,0.2599,96119.0,96112.0,0.2080787]
[1739461060046,0.2599,96119.0,96106.0,0.00015607]
[1739461060249,0.00015607,96125.0,96110.0,0.2080828]
[1739461060439,0.1289,96118.0,96112.0,0.2080793]
[1739461060636,0.1289,96118.0,96106.0,0.01930334]
[1739461061038,0.1289,96118.0,96112.0,0.003]
[1739461061348,0.1289,96118.0,96115.0,0.2080732]
[1739461062436,0.1289,96118.0,96112.0,0.004]
[1739461062635,0.3608,96113.0,96112.0,0.004]
[1739461063649,0.4903,96113.0,96112.0,0.004]
[1739461063948,0.6983782,96113.0,96112.0,0.002]
[1739461064447,0.2080912,96107.0,96106.0,0.00015607]
[1739461065039,0.2080912,96107.0,95973.0,0.00012408]
[1739461065040,0.3608,96112.0,96070.0,0.12497339]
[1739461065239,0.3608,96112.0,96078.0,0.136]
[1739461065240,0.48577339,96100.0,96078.0,0.136]
[1739461065447,0.3608,96086.0,96078.0,0.136]
[1739461065646,0.2081424,96084.0,96078.0,0.01838766]
[1739461065839,0.1249,96085.0,96078.0,0.01838766]
[1739461066043,0.1249,96085.0,96082.0,0.20970496]
[1739461066352,0.2081424,96084.0,96082.0,0.00156086]
[1739461066745,0.1249,96085.0,96083.0,0.2081421]
[1739461068249,0.1249,96085.0,96083.0,0.2191421]
[1739461068950,0.1249,96085.0,96083.0,0.2141421]
[1739461069654,0.1249,96085.0,96083.0,0.2101421]
[1739461070551,0.1249,96085.0,96083.0,0.003]
[1739461070743,0.208141,96084.0,96083.0,0.002]
[1739461070949,0.208141,96084.0,96083.0,0.003]
[1739461071348,0.208141,96084.0,96083.0,0.002]
[1739461072253,0.208141,96084.0,96083.0,0.001]
[1739461073650,0.208141,96084.0,96082.0,0.20970536]
[1739461073651,0.208141,96084.0,96082.0,0.00156086]
[1739461073854,0.2081605,96075.0,96074.0,0.00015607]
[1739461074053,0.5689605,96075.0,96074.0,0.00015607]
[1739461074251,0.3608,96075.0,96074.0,0.22719931]
[1739461074450,0.2081543,96078.0,96074.0,0.00015607]
[1739461074657,0.3608,96083.0,96074.0,0.00015607]
[1739461074954,0.3608,96083.0,96082.0,0.001]
[1739461075355,0.5689431,96083.0,96082.0,0.2091453]
[1739461076356,0.5689431,96083.0,96082.0,0.2081453]
[1739461077147,0.5689431,96083.0,96082.0,0.2091453]
[1739461077659,0.5699431,96083.0,96082.0,0.2081453]
[1739461077858,0.2081605,96075.0,96074.0,0.20831827]
[1739461078849,0.2081535,96080.0,96079.0,0.2081488]
[1739461079453,0.3608,96083.0,96082.0,0.2081453]
[1739461080452,0.3608,96083.0,96078.0,0.2081512]
[1739461080659,0.1249,96085.0,96074.0,0.36095607]
[1739461080853,0.1249,96099.0,96092.0,0.2081237]
[1739461081156,0.12497339,96110.0,96092.0,0.2081237]
[1739461081157,0.3608,96102.0,96092.0,0.2081237]
[1739461081372,0.1278,96103.0,96092.0,0.2081237]
[1739461081861,0.2080941,96106.0,96092.0,0.2081237]
[1739461082047,0.2080941,96106.0,96092.0,0.4616237]
[1739461082454,0.00215607,96093.0,96092.0,0.4616237]
[1739461083360,0.00415607,96093.0,96092.0,0.4616237]
[1739461083755,0.00415607,96093.0,96092.0,0.48017128]
[1739461085259,0.3608,96113.0,96092.0,0.27204758]
[1739461085455,0.3608,96113.0,96108.0,0.208089]
[1739461086048,0.3608,96113.0,96108.0,0.22708367]
[1739461086765,0.006,96109.0,96108.0,0.22808367]
[1739461088260,0.006,96109.0,96108.0,0.22908367]
[1739461091762,0.00015607,96118.0,96117.0,0.2080696]
[1739461093667,0.01866339,96121.0,96120.0,0.2080631]
[1739461097173,0.00015607,96130.0,96129.0,0.2080436]
[1739461097377,0.00015607,96130.0,96129.0,0.5688436]
[1739461098266,0.00156015,96167.0,96134.0,0.0520078]
[1739461098474,0.00156015,96167.0,96154.0,0.2079895]
[1739461098666,0.0185568,96161.0,96154.0,0.2079895]
[1739461098867,0.3608,96163.0,96154.0,0.01868022]
[1739461099073,0.00156015,96167.0,96147.0,0.3608]
[1739461099275,0.00156015,96167.0,96159.0,0.2079776]
[1739461099479,0.00171622,96167.0,96159.0,0.2079776]
[1739461100277,0.00171622,96167.0,96165.0,0.2079645]
[1739461101575,0.00171622,96167.0,96165.0,0.2089645]
[1739461101979,0.00015607,96167.0,96166.0,0.3608]
[1739461103273,0.00015607,96167.0,96166.0,0.3618]
[1739461103469,0.00015607,96167.0,96166.0,0.3628]
[1739461106865,0.00015607,96167.0,96166.0,0.4947]
[1739461107382,0.00015607,96167.0,96166.0,0.5047]
[1739461108375,0.00155991,96187.0,96185.0,0.2079208]
[1739461109473,0.00155991,96187.0,96185.0,0.2251927]
[1739461112978,0.00010151,96196.0,96194.0,0.2079023]
[1739461113379,0.00010151,96196.0,96193.0,0.3608]
[1739461114186,0.00010151,96196.0,96185.0,0.5859943]
[1739461114484,0.20800181,96196.0,96186.0,0.2079189]
[1739461115178,0.2079104,96191.0,96185.0,0.3608]
[1739461115877,0.3608,96193.0,96185.0,0.5687214]
[1739461116280,0.3608,96193.0,96189.0,0.2079121]
[1739461116481,0.3608,96193.0,96190.0,0.2079104]
[1739461117079,0.00010151,96196.0,96185.0,0.38541573]
[1739461117283,0.00010151,96196.0,96192.0,0.207907]
[1739461117988,0.3608,96193.0,96186.0,0.2079203]
[1739461118687,0.2079074,96192.0,96190.0,0.002]
[1739461118985,0.22531818,96192.0,96190.0,0.002]
[1739461119287,0.01741078,96192.0,96179.0,0.2079335]
[1739461119482,0.3608,96193.0,96165.0,0.36235942]
[1739461119483,0.3608,96182.0,96165.0,0.36235942]
[1739461119686,0.2079398,96177.0,96167.0,0.2079602]
[1739461120584,0.22475268,96177.0,96169.0,0.01717401]
[1739461120975,0.22475268,96177.0,96160.0,0.12497339]
[1739461121174,0.22475268,96177.0,96165.0,0.2079644]
[1739461121983,0.22475268,96177.0,96176.0,0.00115599]
[1739461122487,0.22475268,96177.0,96176.0,0.00215599]
[1739461122488,0.2079398,96177.0,96176.0,0.00215599]
[1739461122680,0.3608,96181.0,96179.0,0.2079345]
[1739461125186,0.3608,96182.0,96181.0,0.2079311]
[1739461127083,0.207938,96178.0,96176.0,0.00015599]
[1739461127279,0.1258,96177.0,96176.0,0.00015599]
[1739461127890,0.3608,96182.0,96181.0,0.2079311]
[1739461129787,0.3608,96182.0,96181.0,0.2089311]
[1739461130091,0.3608,96182.0,96181.0,0.2079311]
[1739461130294,0.3608,96182.0,96181.0,0.2099311]
[1739461131293,0.3608,96182.0,96181.0,0.22729732]
[1739461132293,0.3608,96182.0,96181.0,0.22829732]
[1739461132690,0.00974789,96189.0,96188.0,0.207916]
[1739461132890,0.2079088,96192.0,96181.0,0.02036622]
[1739461133602,0.2079088,96192.0,96191.0,0.2079095]
[1739461134994,0.207929,96182.0,96181.0,0.001]
[1739461135189,0.568729,96182.0,96181.0,0.001]
[1739461135501,0.568729,96182.0,96180.0,0.2079328]
[1739461136391,0.568729,96182.0,96179.0,0.18617878]
[1739461136392,0.568729,96182.0,96181.0,0.2079311]
[1739461136593,0.568729,96182.0,96181.0,0.2109311]
[1739461136898,0.58566927,96182.0,96181.0,0.2109311]
[1739461137097,0.2079311,96181.0,96180.0,0.001]
[1739461137697,0.2079355,96179.0,96178.0,0.2079376]
[1739461138099,0.3608,96182.0,96177.0,0.18617878]
[1739461138301,0.3608,96182.0,96181.0,0.2079311]
[1739461138792,0.568729,96182.0,96181.0,0.2079311]
[1739461139597,0.568729,96182.0,96181.0,0.2109311]
[1739461140099,0.3608,96182.0,96181.0,0.2139311]
[1739461140301,0.3608,96182.0,96181.0,0.2109311]
[1739461140502,0.3608,96182.0,96181.0,0.2079311]
[1739461140692,0.207929,96182.0,96181.0,0.2079311]
[1739461140888,0.568729,96182.0,96181.0,0.2079311]
[1739461141092,0.2079398,96177.0,96176.0,0.00015599]
[1739461141897,0.1301,96179.0,96158.0,0.24823838]
[1739461142091,0.5687636,96166.0,96158.0,0.24823838]
[1739461142291,0.2079657,96165.0,96164.0,0.18617878]
[1739461142597,0.22535328,96165.0,96164.0,0.18617878]
[1739461144097,0.37818758,96165.0,96158.0,0.24823838]
[1739461144292,0.2079787,96159.0,96158.0,0.24823838]
[1739461144490,0.4262787,96159.0,96158.0,0.45621928]
[1739461144690,0.4262787,96159.0,96158.0,0.24823838]
[1739461144896,0.2183,96159.0,96158.0,0.45621928]
[1739461145300,0.4262787,96159.0,96158.0,0.45621928]
[1739461145709,0.4262787,96159.0,96158.0,0.46321928]
[1739461145892,0.4262787,96159.0,96158.0,0.46921928]
[1739461146207,0.4262787,96159.0,96158.0,0.2209809]
[1739461146594,0.2183,96159.0,96158.0,0.2209809]
[1739461146798,0.4262787,96159.0,96158.0,0.2209809]
[1739461147499,0.4262787,96159.0,96158.0,0.013]
[1739461148105,0.4262787,96159.0,96158.0,0.2209809]
[1739461148408,0.2079703,96163.0,96162.0,0.2079722]
[1739461149405,0.57925599,96174.0,96164.0,0.2079679]
[1739461149710,0.5687555,96170.0,96169.0,0.2079501]
[1739461150010,0.21845599,96174.0,96162.0,0.005]
[1739461150011,0.21845599,96174.0,96163.0,0.3608]
[1739461150210,0.21845599,96174.0,96173.0,0.2079484]
[1739461150410,0.42640229,96174.0,96173.0,0.2079484]
[1739461152013,0.2079549,96170.0,96169.0,0.003]
[1739461152496,0.2079549,96170.0,96169.0,0.2109571]
[1739461153106,0.2079549,96170.0,96169.0,0.2079571]
[1739461153298,0.21845599,96174.0,96162.0,0.01665215]
[1739461153499,0.42640409,96174.0,96173.0,0.2079484]
[1739461153997,0.42640409,96174.0,96173.0,0.22505034]
[1739461154199,0.00015599,96174.0,96173.0,0.22505034]
[1739461155110,0.20810229,96174.0,96173.0,0.2089484]
[1739461155510,0.00015599,96174.0,96173.0,0.22691063]
[1739461155813,0.00015599,96174.0,96173.0,0.2089484]
[1739461156009,0.00015599,96174.0,96173.0,0.2139484]
[1739461157206,0.00015599,96174.0,96173.0,0.006]
[1739461157410,0.20810229,96174.0,96173.0,0.006]
[1739461157608,0.20810229,96174.0,96173.0,0.002]
[1739461157805,0.20810229,96174.0,96173.0,0.2129484]
[1739461158106,0.00015599,96174.0,96173.0,0.2109484]
[1739461158316,0.00015599,96174.0,96173.0,0.2129484]
[1739461158609,0.00015599,96174.0,96173.0,0.2109484]
[1739461159409,0.00015599,96174.0,96173.0,0.002]
[1739461159608,0.20810229,96174.0,96173.0,0.002]
[1739461159802,0.20810229,96174.0,96173.0,0.001]
[1739461160002,0.20810229,96174.0,96173.0,0.003]
[1739461160515,0.20810229,96174.0,96173.0,0.007]
[1739461161011,0.20810229,96174.0,96173.0,0.2149484]
[1739461161212,0.20810229,96174.0,96173.0,0.2109484]
[1739461161413,0.20810229,96174.0,96173.0,0.2089484]
[1739461161612,0.20810229,96174.0,96173.0,0.2139484]
[1739461162015,0.00015599,96174.0,96173.0,0.2089484]
[1739461162207,0.20810229,96174.0,96173.0,0.2099484]
[1739461162407,0.00015599,96174.0,96173.0,0.2099484]
[1739461163816,0.00015599,96174.0,96173.0,0.2119484]
[1739461164511,0.00015599,96174.0,96173.0,0.2089484]
[1739461164708,0.00015599,96174.0,96173.0,0.2099484]
[1739461165115,0.00015599,96174.0,96173.0,0.2119484]
[1739461165308,0.2183,96195.0,96173.0,0.004]
[1739461165513,0.00155992,96196.0,96192.0,0.2079067]
[1739461165905,0.00155992,96196.0,96193.0,0.2307]
[1739461166113,0.49496466,96194.0,96193.0,0.2307]
[1739461166913,0.03605446,96194.0,96193.0,0.5915]
[1739461167219,0.06607853,96257.0,96238.0,0.207808]
[1739461167519,0.21985868,96286.0,96274.0,0.20773]
[1739461167722,0.01765241,96286.0,96284.0,0.2077077]
[1739461168404,0.01765241,96286.0,96276.0,0.12497339]
[1739461168606,0.01765241,96286.0,96283.0,0.2077104]
[1739461168818,0.00155868,96286.0,96276.0,0.12497339]
[1739461169116,0.00155868,96286.0,96285.0,0.3608]
[1739461169722,0.00155868,96286.0,96285.0,0.3708]
[1739461171011,0.00155868,96286.0,96285.0,0.01]
[1739461171206,0.00155868,96286.0,96285.0,0.001]
[1739461172915,0.00155868,96286.0,96285.0,0.3618]
[1739461173914,0.00155868,96286.0,96285.0,0.001]
[1739461174716,0.36235868,96286.0,96275.0,0.00015579]
[1739461174918,0.3608,96278.0,96275.0,0.00015579]
[1739461175108,0.3608,96278.0,96276.0,0.207726]
[1739461175517,0.3608,96281.0,96276.0,0.207726]
[1739461175722,0.3608,96281.0,96279.0,0.2077181]
[1739461175916,0.12497339,96285.0,96283.0,0.2077096]
[1739461176113,0.00155868,96286.0,96283.0,0.2077096]
[1739461176314,0.00155868,96286.0,96275.0,0.00015579]
[1739461176617,0.00255868,96286.0,96285.0,0.2077066]
[1739461177612,0.00255868,96286.0,96277.0,0.2077226]
[1739461177811,0.00255868,96286.0,96285.0,0.3608]
[1739461178019,0.1,96300.0,96299.0,0.2076764]
[1739461178220,0.1,96300.0,96287.0,0.0519252]
[1739461178221,0.1074,96318.0,96297.0,0.3608]
[1739461178417,0.08244,96317.0,96297.0,0.3608]
[1739461178615,0.08244,96317.0,96297.0,0.36095579]
[1739461178817,0.12279419,96318.0,96297.0,0.36095579]
[1739461179013,0.3608,96319.0,96300.0,0.12497339]
[1739461179216,0.37644226,96319.0,96297.0,0.36095579]
[1739461179415,0.37644226,96319.0,96310.0,0.2076507]
[1739461179616,0.2076377,96317.0,96310.0,0.2076507]
[1739461179813,0.3608,96319.0,96315.0,0.2076408]
[1739461180121,0.58409059,96319.0,96315.0,0.2076408]
[1739461180519,0.5684342,96319.0,96315.0,0.2076408]
[1739461180821,0.3608,96319.0,96310.0,0.002]
[1739461181123,0.3608,96311.0,96297.0,0.00015579]
[1739461181323,0.3608,96298.0,96297.0,0.00015579]
[1739461183718,0.3618,96298.0,96297.0,0.00115579]
[1739461185714,0.0519208,96296.0,96272.0,0.1112]
[1739461185924,0.3608,96278.0,96270.0,0.2077383]
[1739461186436,0.3608,96278.0,96253.0,0.3608]
[1739461186437,0.2077421,96269.0,96266.0,0.207747]
[1739461187427,0.2077421,96269.0,96267.0,0.20930185]
[1739461187828,0.2077421,96269.0,96267.0,0.21330185]
[1739461188821,0.2077421,96269.0,96267.0,0.00555805]
[1739461189124,0.2077421,96269.0,96267.0,0.00655805]
[1739461189434,0.2077421,96269.0,96268.0,0.2077433]
[1739461190030,0.2077433,96268.0,96267.0,0.00555805]
[1739461190327,0.2077433,96268.0,96267.0,0.00255805]
[1739461191635,0.35219488,96270.0,96267.0,0.00155805]
[1739461192030,0.2077433,96268.0,96267.0,0.00155805]
[1739461192522,0.2097433,96268.0,96267.0,0.20930345]
[1739461192718,0.2097433,96268.0,96267.0,0.00155805]
[1739461193032,0.2097433,96268.0,96267.0,0.20930345]
[1739461193233,0.2097433,96268.0,96267.0,0.00155805]
[1739461195932,0.2077433,96268.0,96267.0,0.00155805]
[1739461196133,0.2077433,96268.0,96267.0,0.00355805]
[1739461196734,0.2077433,96268.0,96267.0,0.00155805]
[1739461197739,1.1050353,96268.0,96267.0,0.00155805]
[1739461199032,1.1050353,96268.0,96267.0,0.21930345]
[1739461200144,1.1050353,96268.0,96267.0,0.22330345]
[1739461201031,1.1050353,96268.0,96267.0,0.22730345]
[1739461202238,1.1050353,96268.0,96267.0,0.21730345]
[1739461202536,1.31284678,96268.0,96267.0,0.21330345]
[1739461202930,1.31284678,96268.0,96267.0,0.21530345]
[1739461203333,1.31284678,96268.0,96267.0,0.00355805]
[1739461203532,1.10510348,96268.0,96267.0,0.21530345]
[1739461204332,1.10510348,96268.0,96267.0,0.21230345]
[1739461204531,1.10510348,96268.0,96267.0,0.21430345]
[1739461205030,1.10510348,96268.0,96267.0,0.21030345]
[1739461205333,1.10510348,96268.0,96267.0,0.21130345]
[1739461205841,1.10510348,96268.0,96267.0,0.21330345]
[1739461206635,1.10510348,96268.0,96267.0,0.21730345]
[1739461207341,1.10510348,96268.0,96267.0,0.21330345]
[1739461207543,1.10510348,96268.0,96267.0,0.21430345]
[1739461208036,1.10510348,96268.0,96267.0,0.21530345]
[1739461208640,1.10510348,96268.0,96267.0,0.21330345]
[1739461209238,1.10510348,96268.0,96267.0,0.21430345]
[1739461209834,1.10510348,96268.0,96267.0,0.21530345]
[1739461210234,1.01756892,96268.0,96267.0,0.21730345]
[1739461210741,1.01756892,96268.0,96267.0,0.21330345]
[1739461210941,1.01756892,96268.0,96267.0,0.21730345]
[1739461211337,0.00015516,96278.0,96277.0,0.2077239]
[1739461211538,0.00015516,96278.0,96277.0,0.5685239]
[1739461212836,0.00015516,96278.0,96277.0,0.5695239]
[1739461213335,0.00015516,96278.0,96277.0,0.5705239]
[1739461217445,6e-08,96278.0,96277.0,0.5705239]
[1739461217637,6e-08,96278.0,96277.0,0.8705239]
[1739461218038,0.1041,96317.0,96316.0,0.2076397]
[1739461218238,0.5684354,96318.0,96317.0,0.2076375]
[1739461218838,0.3608,96318.0,96317.0,0.2076375]
[1739461219344,0.310808,96331.0,96323.0,0.2076246]
[1739461219647,0.2076188,96326.0,96323.0,0.2076246]
[1739461220044,0.1032,96331.0,96310.0,0.3608]
[1739461221345,0.12497339,96330.0,96310.0,0.3608]
[1739461221653,0.01581196,96331.0,96330.0,0.2076095]
[1739461221837,0.1099,96335.0,96332.0,0.2076043]
[1739461222039,0.1099,96335.0,96333.0,0.207602]
[1739461223452,0.3174995,96335.0,96333.0,0.22466664]